fUSD/lending_fUSD_20251012
["ID","MTS","AMOUNT","RATE_DAILY","PERIOD"]
[390984953,1760267312982,-220.0,0.00041399,120]
[390984954,1760267313016,-220.0,0.00041399,120]
[390984955,1760267313050,-220.0,0.00041399,120]
[390984956,1760267313083,-220.42712106,0.00041399,120]
[390984957,1760267313116,-500.0,0.00041399,120]
[390984958,1760267313151,-518.5,0.00041399,120]
[390984959,1760267313186,-537.6845,0.00041399,120]
[390984960,1760267313222,-557.5788265,0.00041399,120]
[390984961,1760267313259,-578.20924308,0.00041399,120]
[390984962,1760267313295,-599.60298507,0.00041399,120]
[390984963,1760267313328,-624.61657395,0.00041399,120]
[390984964,1760267313365,-334.79,0.0004355,120]
[390984965,1760267313399,-906.78,0.0004355,120]
[390984966,1760267313434,-34716.66,0.0004355,120]
[390984967,1760267313468,-913.47,0.0004355,120]
[390984968,1760267313729,-2984.42985901,0.0004355,120]
[390984969,1760267313768,-1803.5,0.0004355,120]
[390984970,1760267313804,-13756.63,0.0004355,120]
[390984971,1760267313837,-34573.38,0.0004355,120]
[390984972,1760267313873,-35428.54,0.0004355,120]
[390984973,1760267313907,-990470.24387286,0.000438,120]
[390984974,1760267313941,-581.42286045,0.000438,120]
[390984975,1760267313977,-30572.99133641,0.000438,120]
[390984976,1760267314012,-150.0,0.000438,120]
[390984977,1760267314050,-1780.65,0.00043835,120]
[390984978,1760267314084,-10000.0,0.00043836,120]
[390984979,1760267314120,-10000.0,0.00043836,120]
[390984980,1760267314156,-500.0,0.00043836,120]
[390984981,1760267314192,-5000.0,0.000439,120]
[390984982,1760267314231,-5561.0,0.000439,120]
[390984983,1760267314266,-173.0,0.000439,120]
[390984984,1760267314303,-179138.38341104,0.000439,120]
[390984985,1760267314337,-2175.0,0.0004393,120]
[390984986,1760267314369,-100000.0,0.00043987,120]
[390984987,1760267314399,-375855.06360073,0.00043987,120]
[390984988,1760267314431,-75440.54697043,0.00043987,120]
[390984989,1760267314464,-188164.78590062,0.00044,120]
[390984990,1760267314498,-10000.0,0.00044,120]
[390984991,1760267314531,-200.0,0.00044,120]
[390984992,1760267314564,-5000.0,0.00044,120]
[390984993,1760267314598,-3400.0,0.00044,120]
[390984994,1760267314631,-53705.0,0.00044,120]
[390984995,1760267314666,-2500.0,0.00044,120]
[390984996,1760267314699,-300.0,0.00044,120]
[390984997,1760267314733,-4930.68194697,0.00044,120]
[390984998,1760267314768,-500000.0,0.00044,120]
[390984999,1760267314801,-364.44157479,0.00044,120]
[390985000,1760267314834,-500.0,0.00044,120]
[390985001,1760267314874,-2176032.05661866,0.00044,120]
[390985002,1760267342757,250.0,0.00013845,7]
[390985004,1760267356744,-150.0,0.00039178,120]
[390985005,1760267356798,-35340.16,0.0004355,120]
[390985006,1760267356836,-1809.25,0.0004355,120]
[390985007,1760267356871,-34422.14,0.0004355,120]
[390985008,1760267356907,-14165.3,0.0004355,120]
[390985009,1760267356942,-159.17504801,0.0004355,120]
[390985010,1760267356980,-911.12,0.0004355,120]
[390985011,1760267357019,-34310.98,0.0004355,120]
[390985012,1760267357060,-913.23,0.0004355,120]
[390985013,1760267357097,-3021.69216362,0.0004355,120]
[390985014,1760267357134,-35539.24,0.0004355,120]
[390985015,1760267357170,-1788.97,0.0004355,120]
[390985016,1760267357206,-35115.54,0.0004355,120]
[390985017,1760267357243,-35424.53,0.0004355,120]
[390985018,1760267357691,-14003.78,0.0004355,120]
[390985019,1760267357748,-1766.79,0.0004355,120]
[390985020,1760267357788,-34640.35,0.0004355,120]
[390985021,1760267357825,-336.84979846,0.0004365,120]
[390985022,1760267357859,-520.0,0.00043799,120]
[390985023,1760267357892,-539.24,0.00043799,120]
[390985024,1760267357927,-1000.0,0.00043799,120]
[390985025,1760267357962,-559.19188,0.00043799,120]
[390985026,1760267357997,-1000.0,0.00043799,120]
[390985027,1760267358031,-1000.0,0.00043799,120]
[390985028,1760267358068,-579.88197956,0.00043799,120]
[390985029,1760267358102,-601.3376128,0.00043799,120]
[390985030,1760267358137,-1000.0,0.00043799,120]
[390985031,1760267358172,-623.58710448,0.00043799,120]
[390985032,1760267358208,-1000.0,0.00043799,120]
[390985033,1760267358246,-1000.0,0.00043799,120]
[390985034,1760267358282,-500.0,0.00043799,120]
[390985035,1760267358319,-646.65982734,0.00043799,120]
[390985036,1760267358354,-1000.0,0.00043799,120]
[390985037,1760267358387,-1000.0,0.00043799,120]
[390985038,1760267358420,-500.0,0.00043799,120]
[390985039,1760267358453,-500.0,0.00043799,120]
[390985040,1760267358488,-151.0,0.00043799,120]
[390985041,1760267358522,-1000.0,0.00043799,120]
[390985042,1760267358556,-1000.0,0.00043799,120]
[390985043,1760267358590,-500.0,0.00043799,120]
[390985044,1760267358623,-151.0,0.00043799,120]
[390985045,1760267358657,-1000.0,0.00043799,120]
[390985046,1760267358689,-500.0,0.00043799,120]
[390985047,1760267358722,-500.0,0.00043799,120]
[390985048,1760267358756,-500.0,0.00043799,120]
[390985049,1760267358791,-151.0,0.00043799,120]
[390985050,1760267358825,-1000.0,0.00043799,120]
[390985051,1760267358859,-500.0,0.00043799,120]
[390985052,1760267358893,-500.0,0.00043799,120]
[390985053,1760267358927,-500.0,0.00043799,120]
[390985054,1760267358966,-151.0,0.00043799,120]
[390985055,1760267359001,-1000.0,0.00043799,120]
[390985056,1760267359037,-500.0,0.00043799,120]
[390985057,1760267359073,-500.0,0.00043799,120]
[390985058,1760267359108,-500.0,0.00043799,120]
[390985059,1760267359144,-151.0,0.00043799,120]
[390985060,1760267359180,-1000.0,0.00043799,120]
[390985061,1760267359215,-500.0,0.00043799,120]
[390985062,1760267359249,-500.0,0.00043799,120]
[390985063,1760267359284,-500.0,0.00043799,120]
[390985064,1760267359320,-151.0,0.00043799,120]
[390985065,1760267359353,-500.0,0.00043799,120]
[390985066,1760267359386,-500.0,0.00043799,120]
[390985067,1760267359419,-500.0,0.00043799,120]
[390985068,1760267359454,-151.0,0.00043799,120]
[390985069,1760267359489,-500.0,0.00043799,120]
[390985070,1760267359523,-509.48659103,0.00043799,120]
[390985071,1760267359558,-300.0,0.00043799,120]
[390985072,1760267359596,-311.1,0.00043799,120]
[390985073,1760267359631,-322.6107,0.00043799,120]
[390985074,1760267359665,-334.5472959,0.00043799,120]
[390985075,1760267359699,-346.92554585,0.00043799,120]
[390985076,1760267359732,-359.76179104,0.00043799,120]
[390985077,1760267359767,-373.07297731,0.00043799,120]
[390985078,1760267359803,-445.71712927,0.00043799,120]
[390985079,1760267359840,-3847982.34560802,0.00044,120]
[390985080,1760267359876,-600.0,0.00044,120]
[390985081,1760267359912,-25000.0,0.00044,120]
[390985082,1760267359948,-24109.80341,0.00044,120]
[390985083,1760267359983,-225981.52260578,0.00044,120]
[390985084,1760267360020,-110005.2693894,0.00044,120]
[390985085,1760267360058,-2000.0,0.00044,120]
[390985086,1760267360097,-2500.0,0.00044,120]
[390985087,1760267360137,-500.0,0.0004411,120]
[390985088,1760267360174,-150.0,0.00044184,120]
[390985089,1760267360213,-500.0,0.00044384,120]
[390985090,1760267360251,-39552.0,0.00044397,120]
[390985091,1760267360295,-404869.84154213,0.000444,120]
[390985092,1760267393456,-3500.0,0.0004,120]
[390985093,1760267393506,-34693.09,0.0004365,120]
[390985094,1760267393542,-334.92768396,0.0004365,120]
[390985095,1760267393576,-439.83530147,0.0004375,120]
[390985096,1760267393610,-34595.44,0.0004375,120]
[390985097,1760267393647,-1786.55,0.0004375,120]
[390985098,1760267393680,-13913.07,0.0004375,120]
[390985099,1760267393713,-35210.55,0.0004375,120]
[390985100,1760267393748,-34635.52,0.0004375,120]
[390985101,1760267393784,-1483.89119822,0.0004375,120]
[390985102,1760267393822,-95130.15845787,0.000444,120]
[390985103,1760267393858,-200.0,0.00044497,120]
[390985104,1760267393894,-535010.67903453,0.00044499,120]
[390985105,1760267393929,-3000.0,0.000445,120]
[390985106,1760267393966,-238709.80009506,0.000445,120]
[390985107,1760267394001,-100000.0,0.000445,120]
[390985108,1760267394039,-173.0,0.000445,120]
[390985109,1760267394084,-2500.0,0.000445,120]
[390985110,1760267394126,-1780.65,0.0004452,120]
[390985111,1760267394170,-150.0,0.00044567,120]
[390985112,1760267394215,-1444.0,0.00044603,120]
[390985113,1760267394263,-500.0,0.00044658,120]
[390985114,1760267394307,-152.0,0.000447,120]
[390985115,1760267394348,-10000.0,0.000448,120]
[390985116,1760267394388,-10000.0,0.000448,120]
[390985117,1760267394425,-50000.0,0.0004485,120]
[390985118,1760267394462,-4028.0,0.0004489,120]
[390985119,1760267394500,-93738.20659053,0.0004489,120]
[390985120,1760267394542,-15000.0,0.000449,120]
[390985121,1760267394581,-15000.0,0.000449,120]
[390985122,1760267394618,-15000.0,0.000449,120]
[390985123,1760267394657,-15000.0,0.000449,120]
[390985124,1760267394696,-15000.0,0.000449,120]
[390985125,1760267394734,-15000.0,0.000449,120]
[390985126,1760267394773,-20000.0,0.000449,120]
[390985127,1760267394811,-20000.0,0.000449,120]
[390985128,1760267394851,-20000.0,0.000449,120]
[390985129,1760267394890,-20000.0,0.000449,120]
[390985130,1760267394926,-20000.0,0.000449,120]
[390985131,1760267394962,-20000.0,0.000449,120]
[390985132,1760267394998,-20000.0,0.000449,120]
[390985133,1760267395037,-20000.0,0.000449,120]
[390985134,1760267395075,-5318.73567184,0.000449,120]
[390985135,1760267395114,-500.0,0.00044932,120]
[390985136,1760267395153,-150.0,0.00044951,120]
[390985137,1760267395194,-150.0,0.0004499,120]
[390985138,1760267395235,-43600.0,0.0004499,120]
[390985139,1760267395275,-150.0,0.0004499,120]
[390985140,1760267395316,-150.0,0.0004499,120]
[390985141,1760267395356,-17500.0,0.0004499,120]
[390985142,1760267395391,-500.0,0.0004499,120]
[390985143,1760267395426,-1000.0,0.00044999,120]
[390985144,1760267395468,-600.0,0.00045,120]
[390985145,1760267395861,-1190.56883669,0.00045,120]
[390985146,1760267395901,-2199.0,0.00045,120]
[390985147,1760267395943,-20000.0,0.00045,120]
[390985148,1760267395986,-18048.3950245,0.00045,120]
[390985149,1760267396028,-3083.57000099,0.00045,120]
[390985150,1760267396071,-7529.90062121,0.00045,120]
[390985151,1760267396115,-243.74514154,0.00045,120]
[390985152,1760267396162,-25000.0,0.00045,120]
[390985153,1760267396206,-200.0,0.00045,120]
[390985154,1760267396251,-2319.84953501,0.00045,120]
[390985155,1760267396288,-531.76584775,0.00045,120]
[390985156,1760267396327,-19734.51443838,0.00045,120]
[390985157,1760267396367,-310791.32036897,0.00045,120]
[390985158,1760267396407,-4153.24583403,0.00045,120]
[390985159,1760267396446,-150.0,0.00045,120]
[390985160,1760267396484,-218.20245661,0.00045,120]
[390985161,1760267396522,-8181.65040837,0.00045,120]
[390985162,1760267396574,-5857.84446759,0.00045,120]
[390985163,1760267396613,-10000.0,0.00045,120]
[390985164,1760267396650,-223.31888209,0.00045,120]
[390985165,1760267396686,-1000.0,0.00045,120]
[390985166,1760267396721,-214.40796017,0.00045,120]
[390985167,1760267396757,-720.1822706,0.00045,120]
[390985168,1760267396793,-20000.0,0.00045,120]
[390985169,1760267396830,-500.0,0.00045,120]
[390985170,1760267396870,-18353.84359302,0.00045,120]
[390985171,1760267396908,-538.0,0.00045,120]
[390985172,1760267396946,-11889.84,0.00045,120]
[390985173,1760267396984,-2000.0,0.00045,120]
[390985174,1760267397023,-306881.6021298,0.00045,120]
[390985175,1760267397062,-20000.0,0.00045,120]
[390985176,1760267397099,-63543.29,0.00045,120]
[390985177,1760267397134,-10080.52635774,0.00045,120]
[390985178,1760267397169,-2477893.31179146,0.00045,120]
[390985240,1760267444556,-1444.0,0.00035562,120]
[390985241,1760267444621,-150.0,0.00039552,120]
[390985242,1760267444679,-25208.09430119,0.00043799,120]
[390985243,1760267444726,-18268.54361273,0.00043799,120]
[390985244,1760267444772,-18924.989697,0.00043799,120]
[390985245,1760267444820,-35513.99,0.0004415,120]
[390985246,1760267444867,-35465.39,0.0004415,120]
[390985247,1760267444912,-13796.09,0.0004415,120]
[390985248,1760267444957,-35398.66,0.0004415,120]
[390985249,1760267445002,-150.0,0.0004415,120]
[390985250,1760267445047,-34532.51,0.0004415,120]
[390985251,1760267445093,-25546.6473861,0.0004415,120]
[390985252,1760267445139,-13924.86,0.0004475,120]
[390985253,1760267445183,-150.0,0.0004475,120]
[390985254,1760267445228,-150.0,0.0004475,120]
[390985255,1760267445276,-600.0,0.0004499,120]
[390985256,1760267445320,-600.0,0.00044999,120]
[390985257,1760267445366,-600.0,0.00044999,120]
[390985258,1760267445410,-600.0,0.00044999,120]
[390985259,1760267445454,-600.0,0.00044999,120]
[390985260,1760267445499,-600.0,0.00044999,120]
[390985261,1760267445542,-600.0,0.00044999,120]
[390985262,1760267445587,-600.0,0.00044999,120]
[390985263,1760267445632,-600.0,0.00044999,120]
[390985264,1760267445676,-600.0,0.00044999,120]
[390985265,1760267445721,-600.0,0.00044999,120]
[390985266,1760267445766,-600.0,0.00044999,120]
[390985267,1760267445810,-600.0,0.00044999,120]
[390985268,1760267445855,-600.0,0.00044999,120]
[390985269,1760267445900,-600.0,0.00044999,120]
[390985270,1760267445943,-600.0,0.00044999,120]
[390985271,1760267445988,-600.0,0.00044999,120]
[390985272,1760267446031,-600.0,0.00044999,120]
[390985273,1760267446075,-600.0,0.00044999,120]
[390985274,1760267446119,-600.0,0.00044999,120]
[390985275,1760267446160,-600.0,0.00044999,120]
[390985276,1760267446205,-2085744.77219374,0.00045,120]
[390985277,1760267446249,-25036.01,0.00045,120]
[390985278,1760267446294,-25000.0,0.00045,120]
[390985279,1760267446336,-87743.33,0.00045,120]
[390985280,1760267446381,-83764.5877367,0.00045,120]
[390985281,1760267446423,-30521.55503268,0.00045,120]
[390985282,1760267446465,-1345527.02188116,0.00045,120]
[390985283,1760267446506,-8735.62057568,0.00045,120]
[390985285,1760267446549,-5416.487451,0.00045,120]
[390985286,1760267446591,-22508.9,0.00045,120]
[390985287,1760267446632,-688505.24770107,0.00045,120]
[390985288,1760267446674,-6753.0614977,0.00045,120]
[390985289,1760267446716,-122002.6943147,0.00045,120]
[390985290,1760267446759,-6182.0,0.00045,120]
[390985291,1760267446802,-99327.90215692,0.00045,120]
[390985292,1760267446845,-221.0,0.00045,120]
[390985293,1760267446889,-18749.57493786,0.00045,120]
[390985294,1760267446932,-2024.87653804,0.00045,120]
[390985295,1760267446976,-65011.58298573,0.00045,120]
[390985296,1760267457247,-291.98779299,0.00013699,2]
[390985297,1760267457334,-174.45220701,0.00013699,2]
[390985298,1760267457344,-334.73055472,0.00013859,2]
[390985299,1760267457378,-1265.26944528,0.00013859,2]
[390985300,1760267457387,-547.4732,0.00014318,2]
[390985301,1760267457397,-168.0,0.00014332,2]
[390985302,1760267457406,-168.0,0.00014371,2]
[390985303,1760267457415,-168.0,0.0001439,2]
[390985304,1760267457424,-265.0,0.0001454,2]
[390985305,1760267457433,-265.0,0.00014664,2]
[390985306,1760267457442,-168.0,0.00014755,2]
[390985307,1760267457452,-267.46074303,0.0001479,2]
[390985308,1760267457460,-1200.0,0.00014797,2]
[390985309,1760267457469,-450.5466188,0.00014798,2]
[390985310,1760267457478,-154.70086544,0.00014798,2]
[390985311,1760267457487,-175.08571604,0.00014798,2]
[390985312,1760267457496,-5000.0,0.00014799,2]
[390985313,1760267457505,-150.0,0.000148,2]
[390985314,1760267457514,-152.53635542,0.000148,2]
[390985315,1760267457523,-2397.52,0.000148,2]
[390985316,1760267457532,-1199.12,0.000148,2]
[390985317,1760267457541,-175.08571603,0.000148,2]
[390985318,1760267457550,-450.54661877,0.00014809,2]
[390985319,1760267457560,-450.54661877,0.00014821,2]
[390985320,1760267457569,-450.54661877,0.00014832,2]
[390985321,1760267457579,-152.53635539,0.00014833,2]
[390985322,1760267457588,-450.54661877,0.00014843,2]
[390985323,1760267457598,-450.54661877,0.00014855,2]
[390985324,1760267457606,-450.54661877,0.00014866,2]
[390985325,1760267457615,-152.53635539,0.00014867,2]
[390985326,1760267457624,-339.31532798,0.00014873,2]
[390985327,1760267457633,-500.0,0.00014873,2]
[390985328,1760267457642,-500.0,0.00014873,2]
[390985329,1760267457651,-500.73964104,0.00014873,2]
[390985330,1760267457660,-450.54661877,0.00014877,2]
[390985331,1760267457669,-186.94167072,0.0001488,2]
[390985332,1760267457678,-6462.3671243,0.00014881,2]
[390985333,1760267457687,-161.2405288,0.00014881,2]
[390985334,1760267457696,-19610.3182261,0.00014881,2]
[390985335,1760267457706,-500.0,0.00014884,2]
[390985336,1760267457715,-450.54661877,0.00014889,2]
[390985337,1760267457724,-1081.16319383,0.00014889,2]
[390985338,1760267457733,-201.40321878,0.00014897,2]
[390985339,1760267457742,-1000.0,0.00014898,2]
[390985340,1760267457751,-500.0,0.00014898,2]
[390985341,1760267457760,-150.0,0.00014898,2]
[390985342,1760267457768,-150.0,0.00014898,2]
[390985343,1760267457777,-150.0,0.00014898,2]
[390985344,1760267457787,-150.0,0.00014898,2]
[390985345,1760267457796,-150.0,0.00014898,2]
[390985346,1760267457805,-500.0,0.00014898,2]
[390985347,1760267457814,-504.62408704,0.00014898,2]
[390985348,1760267457824,-150.0,0.00014898,2]
[390985349,1760267457833,-150.0,0.00014898,2]
[390985350,1760267457842,-150.0,0.00014898,2]
[390985351,1760267457852,-500.0,0.00014898,2]
[390985352,1760267457861,-201.81837537,0.00014898,2]
[390985353,1760267457870,-150.0,0.00014898,2]
[390985354,1760267457879,-284.38831943,0.00014898,2]
[390985355,1760267457889,-559.0,0.00014898,2]
[390985356,1760267457900,-74934.15740163,0.00014899,2]
[390985357,1760267457911,-1000.0,0.00014899,2]
[390985358,1760267457920,-1000.0,0.00014899,2]
[390985359,1760267457930,-10980.21775153,0.00014899,2]
[390985360,1760267458350,-2071.7809554,0.00014899,2]
[390985361,1760267458363,-958.01119287,0.00014899,2]
[390985362,1760267463684,-899.4,0.00014899,2]
[390985363,1760267463859,-845.0020056,0.00014899,2]
[390985364,1760267463900,-375.98421403,0.00014899,2]
[390985365,1760267463934,-1663.25974346,0.00014899,2]
[390985366,1760267465902,-327.32053819,0.00014899,2]
[390985367,1760267465914,-560.470784,0.00014899,2]
[390985368,1760267465950,-1455.4501939,0.00014899,2]
[390985369,1760267468378,-2964.02716391,0.00014899,2]
[390985370,1760267468471,-20695.51467581,0.00014899,2]
[390985371,1760267468506,-570.14988775,0.00014899,2]
[390985372,1760267468517,-32638.82839275,0.00014899,2]
[390985373,1760267468527,-2743.0069163,0.00014899,2]
[390985374,1760267468536,-9786.5081311,0.00014899,2]
[390985375,1760267468545,-6124.63276239,0.00014899,2]
[390985376,1760267468554,-2000.0,0.000149,2]
[390985377,1760267468563,-186.94167071,0.000149,2]
[390985378,1760267468573,-55555.0,0.000149,2]
[390985379,1760267468583,-152.53635539,0.000149,2]
[390985380,1760267468593,-150.45577131,0.000149,2]
[390985381,1760267468602,-150.0,0.000149,2]
[390985382,1760267468611,-150.0,0.000149,2]
[390985383,1760267468621,-150.63534201,0.000149,2]
[390985384,1760267468630,-155.46362373,0.000149,2]
[390985385,1760267468640,-150.0,0.000149,2]
[390985386,1760267468650,-150.08622419,0.000149,2]
[390985387,1760267468659,-150.0,0.000149,2]
[390985388,1760267468669,-150.78303319,0.000149,2]
[390985389,1760267468678,-150.0,0.000149,2]
[390985390,1760267468688,-1000.0,0.000149,2]
[390985391,1760267468697,-1000.0,0.000149,2]
[390985392,1760267468706,-1000.0,0.000149,2]
[390985393,1760267468716,-1000.0,0.000149,2]
[390985394,1760267468725,-450.54661877,0.000149,2]
[390985395,1760267468734,-151.0,0.00014901,2]
[390985396,1760267468743,-191.468749,0.00014901,2]
[390985397,1760267468753,-151.0,0.00014901,2]
[390985398,1760267468762,-151.0,0.00014901,2]
[390985399,1760267468771,-17913.24332534,0.00014901,2]
[390985400,1760267468781,-4126.26281884,0.00014902,2]
[390985401,1760267468790,-1355.58511752,0.00014915,2]
[390985402,1760267468799,-160.339494,0.00014916,2]
[390985403,1760267468809,-218.966974,0.00014916,2]
[390985404,1760267468819,-151.0,0.00014916,2]
[390985405,1760267468827,-256.0,0.00014917,2]
[390985406,1760267468845,-200.0,0.00014917,2]
[390985407,1760267468857,-207.0,0.00014917,2]
[390985408,1760267468866,-150.761,0.00014917,2]
[390985409,1760267468876,-266.896,0.00014917,2]
[390985410,1760267468886,-202.666,0.00014917,2]
[390985411,1760267468895,-250.0,0.00014917,2]
[390985412,1760267468905,-299.971,0.00014917,2]
[390985413,1760267468915,-254.981,0.00014917,2]
[390985414,1760267468924,-249.054,0.00014917,2]
[390985415,1760267468933,-187.977,0.00014917,2]
[390985416,1760267468942,-207.638,0.00014917,2]
[390985417,1760267468952,-161.421,0.00014917,2]
[390985418,1760267468965,-250.0,0.00014917,2]
[390985419,1760267468977,-208.834,0.00014917,2]
[390985420,1760267468987,-216.74,0.00014917,2]
[390985421,1760267468996,-159.0,0.00014917,2]
[390985422,1760267469006,-213.088,0.00014917,2]
[390985423,1760267469015,-3405.0,0.00014917,2]
[390985424,1760267469025,-1266.0,0.00014917,2]
[390985425,1760267469034,-2048.0,0.00014917,2]
[390985426,1760267469044,-877.914,0.00014917,2]
[390985427,1760267469054,-1587.0,0.00014917,2]
[390985428,1760267469064,-1309.055,0.00014917,2]
[390985429,1760267469073,-571.0,0.00014917,2]
[390985430,1760267469083,-604.0,0.00014917,2]
[390985431,1760267469093,-816.0,0.00014917,2]
[390985432,1760267469102,-6440.0,0.00014917,2]
[390985433,1760267469112,-556.0,0.00014917,2]
[390985434,1760267469121,-280.275905,0.00014917,2]
[390985435,1760267469131,-151.913664,0.00014917,2]
[390985436,1760267469142,-167.99591416,0.00014921,2]
[390985437,1760267469152,-533.32036249,0.00014923,2]
[390985438,1760267469161,-181.083522,0.00014925,2]
[390985439,1760267469171,-181.083522,0.00014925,2]
[390985440,1760267469180,-181.083522,0.00014925,2]
[390985441,1760267469190,-181.083522,0.00014925,2]
[390985442,1760267469199,-151.0,0.00014925,2]
[390985443,1760267469209,-151.0,0.00014925,2]
[390985444,1760267469219,-3059.65125042,0.00014935,2]
[390985445,1760267469229,-533.32036249,0.00014939,2]
[390985446,1760267469239,-167.99591416,0.0001494,2]
[390985447,1760267469249,-4126.26281884,0.00014942,2]
[390985448,1760267469260,-3059.65125042,0.00014944,2]
[390985449,1760267469269,-548.54360727,0.00014953,2]
[390985450,1760267469283,-150.0,0.00014953,2]
[390985451,1760267469292,-150.0,0.00014953,2]
[390985452,1760267469301,-150.0,0.00014953,2]
[390985453,1760267469311,-500.0,0.00014953,2]
[390985454,1760267469320,-4126.26281884,0.00014953,2]
[390985455,1760267469330,-296.18945097,0.00014955,2]
[390985456,1760267469339,-1355.58511752,0.00014956,2]
[390985457,1760267469349,-168.0,0.00014961,2]
[390985458,1760267469359,-1355.58511752,0.00014964,2]
[390985459,1760267469368,-559.98638052,0.00014964,2]
[390985460,1760267469377,-500.0,0.0001497,2]
[390985461,1760267469387,-151.0,0.00014972,2]
[390985462,1760267469397,-500.0,0.00014973,2]
[390985463,1760267469406,-500.0,0.00014973,2]
[390985464,1760267469416,-500.0,0.00014973,2]
[390985465,1760267469425,-500.93822774,0.00014973,2]
[390985466,1760267469434,-500.0,0.00014973,2]
[390985467,1760267469443,-500.64746514,0.00014973,2]
[390985468,1760267469452,-573.97069682,0.00014973,2]
[390985469,1760267469461,-500.0,0.00014973,2]
[390985470,1760267469471,-500.0,0.00014973,2]
[390985471,1760267469480,-500.0,0.00014973,2]
[390985472,1760267469490,-203.83568918,0.00014973,2]
[390985473,1760267469499,-500.0,0.00014973,2]
[390985474,1760267469509,-500.0,0.00014973,2]
[390985475,1760267469517,-500.0,0.00014973,2]
[390985476,1760267469527,-500.0,0.00014973,2]
[390985477,1760267469536,-500.0,0.00014973,2]
[390985478,1760267469545,-500.0,0.00014973,2]
[390985479,1760267469555,-500.0,0.00014973,2]
[390985480,1760267469564,-500.0,0.00014973,2]
[390985481,1760267469574,-533.32036249,0.00014973,2]
[390985482,1760267469584,-202.106874,0.00014973,2]
[390985483,1760267469593,-187.92168,0.00014973,2]
[390985484,1760267469603,-6124.63276239,0.00014976,2]
[390985485,1760267469613,-167.99591416,0.00014976,2]
[390985486,1760267469622,-6124.63276239,0.00014977,2]
[390985487,1760267469632,-559.98638052,0.00014978,2]
[390985488,1760267469641,-2774.53927271,0.0001498,12]
[390985489,1760267469650,-5000.0,0.0001498,11]
[390985490,1760267469660,-5000.0,0.0001498,9]
[390985491,1760267469669,-5000.0,0.0001498,10]
[390985492,1760267469679,-5000.0,0.0001498,8]
[390985493,1760267469688,-5000.0,0.0001498,7]
[390985494,1760267469698,-151.0,0.0001498,2]
[390985495,1760267469708,-292.398873,0.0001498,2]
[390985496,1760267469717,-151.0,0.0001498,2]
[390985497,1760267469727,-168.0,0.00014982,2]
[390985498,1760267469736,-265.0,0.00014982,2]
[390985499,1760267469745,-556.0178532,0.00014993,2]
[390985500,1760267469754,-57421.51843817,0.00014995,2]
[390985501,1760267469764,-151.0,0.00014995,2]
[390985502,1760267469773,-181.083522,0.00014998,2]
[390985503,1760267469782,-181.083522,0.00014998,2]
[390985504,1760267469791,-181.083522,0.00014998,2]
[390985505,1760267469800,-181.083522,0.00014998,2]
[390985506,1760267469810,-151.0,0.00014998,2]
[390985507,1760267469819,-151.0,0.00014998,2]
[390985508,1760267469828,-20097.12882149,0.00014999,2]
[390985509,1760267473056,-250.0,0.0001386,2]
[390985510,1760267473066,-2293.67750226,0.00014999,2]
[390985511,1760267473171,-616.91850101,0.00014999,2]
[390985512,1760267473182,-4480.20457185,0.00014999,2]
[390985513,1760267484796,-150.0,0.00039633,120]
[390985514,1760267484842,-2263.0,0.000409,120]
[390985515,1760267484894,-13733.69,0.0004475,120]